[Event "Titled Tuesday Blitz March 15 Early 2022"]
[White "Chen, Justin"]
[Black "Gaehwiler, Gabriel"]
[WhiteFideId "2098199"]
[BlackFideId "1314530"]
[WhiteElo "2424"]
[BlackElo "2383"]
[Result "0-1"]
[Round "01"]
[TimeControl "180+1"]
[Date "2022.03.15"]
[WhiteClock "0:00:13"]
[BlackClock "0:01:02"]

1. Nf3 {[%clk 0:03:00]}  Nf6 {[%clk 0:02:59]} 2. c4 {[%clk 0:03:00]}  b6 {[%clk 0:02:59]} 3. g3 {[%clk 0:02:59]}  Bb7 {[%clk 0:03:00]} 4. Bg2 {[%clk 0:03:00]}  g6 {[%clk 0:03:01]} 5. O-O {[%clk 0:03:00]}  Bg7 {[%clk 0:03:02]} 6. d4 {[%clk 0:03:00]}  O-O {[%clk 0:03:02]} 7. b3 {[%clk 0:02:56]}  Ne4 {[%clk 0:02:58]} 8. Bb2 {[%clk 0:02:54]}  f5 {[%clk 0:02:57]} 9. Nfd2 {[%clk 0:02:49]}  Nd6 {[%clk 0:02:53]} 10. Bxb7 {[%clk 0:02:45]}  Nxb7 {[%clk 0:02:53]} 11. e4 {[%clk 0:02:39]}  e6 {[%clk 0:02:50]} 12. exf5 {[%clk 0:02:32]}  Rxf5 {[%clk 0:02:47]} 13. Ne4 {[%clk 0:02:18]}  Nc6 {[%clk 0:02:37]} 14. Qd2 {[%clk 0:02:05]}  d5 {[%clk 0:02:32]} 15. cxd5 {[%clk 0:02:02]}  exd5 {[%clk 0:02:28]} 16. Rc1 {[%clk 0:01:34]}  Nba5 {[%clk 0:01:57]} 17. Nec3 {[%clk 0:01:14]}  Nxd4 {[%clk 0:01:54]} 18. Qd3 {[%clk 0:01:15]}  Rf3 {[%clk 0:01:36]} 19. Qf1 {[%clk 0:01:11]}  c6 {[%clk 0:01:30]} 20. Nd2 {[%clk 0:00:55]}  Rf7 {[%clk 0:01:30]} 21. Qd3 {[%clk 0:00:47]}  Qg5 {[%clk 0:01:26]} 22. Kg2 {[%clk 0:00:25]}  Raf8 {[%clk 0:01:23]} 23. Rf1 {[%clk 0:00:26]}  Nf3 {[%clk 0:01:19]} 24. Nxf3 {[%clk 0:00:22]}  Rxf3 {[%clk 0:01:20]} 25. Qxf3 {[%clk 0:00:14]}  Rxf3 {[%clk 0:01:18]} 26. Kxf3 {[%clk 0:00:15]}  Qd2 {[%clk 0:01:07]} 27. Rab1 {[%clk 0:00:14]}  Bxc3 {[%clk 0:01:05]} 28. Rfd1 {[%clk 0:00:13]}  Qc2 {[%clk 0:01:02]} 0-1


[Site "https://www.chess.com"]

[Event "Titled Tuesday Blitz March 15 Early 2022"]
[White "Cramling Bellon, Anna"]
[Black "Tasev, Dejan"]
[WhiteFideId "32009232"]
[BlackFideId "936618"]
[WhiteElo "1905"]
[BlackElo "2253"]
[Result "1-0"]
[Round "01"]
[TimeControl "180+1"]
[Date "2022.03.15"]
[WhiteClock "0:00:03"]
[BlackClock "0:00:11"]

1. d4 {[%clk 0:02:57]}  Nf6 {[%clk 0:02:58]} 2. c4 {[%clk 0:02:56]}  g6 {[%clk 0:02:58]} 3. Nc3 {[%clk 0:02:56]}  Bg7 {[%clk 0:02:58]} 4. e4 {[%clk 0:02:56]}  d6 {[%clk 0:02:58]} 5. h3 {[%clk 0:02:56]}  O-O {[%clk 0:02:58]} 6. Nf3 {[%clk 0:02:55]}  c5 {[%clk 0:02:58]} 7. d5 {[%clk 0:02:54]}  b5 {[%clk 0:02:58]} 8. cxb5 {[%clk 0:02:54]}  a6 {[%clk 0:02:57]} 9. Bd2 {[%clk 0:02:47]}  Nbd7 {[%clk 0:02:55]} 10. a4 {[%clk 0:02:45]}  Ne8 {[%clk 0:02:52]} 11. Bd3 {[%clk 0:02:44]}  Nc7 {[%clk 0:02:51]} 12. O-O {[%clk 0:02:42]}  Bb7 {[%clk 0:02:51]} 13. a5 {[%clk 0:02:28]}  axb5 {[%clk 0:02:46]} 14. Nxb5 {[%clk 0:02:29]}  Nxb5 {[%clk 0:02:31]} 15. Bxb5 {[%clk 0:02:30]}  Ba6 {[%clk 0:02:31]} 16. Qe2 {[%clk 0:02:24]}  Bxb5 {[%clk 0:02:15]} 17. Qxb5 {[%clk 0:02:25]}  Rb8 {[%clk 0:02:15]} 18. Qc6 {[%clk 0:02:12]}  Bxb2 {[%clk 0:02:11]} 19. Rab1 {[%clk 0:02:05]}  Bf6 {[%clk 0:01:47]} 20. Rxb8 {[%clk 0:01:42]}  Nxb8 {[%clk 0:01:40]} 21. Qb7 {[%clk 0:01:42]}  Qc8 {[%clk 0:01:34]} 22. Rb1 {[%clk 0:01:32]}  Na6 {[%clk 0:01:28]} 23. Qa7 {[%clk 0:01:03]}  Qa8 {[%clk 0:01:04]} 24. Rb7 {[%clk 0:00:59]}  c4 {[%clk 0:00:38]} 25. Bh6 {[%clk 0:00:39]}  Re8 {[%clk 0:00:27]} 26. e5 {[%clk 0:00:13]}  dxe5 {[%clk 0:00:23]} 27. d6 {[%clk 0:00:13]}  Nc5 {[%clk 0:00:18]} 28. d7 {[%clk 0:00:05]}  Rd8 {[%clk 0:00:13]} 29. Rc7 {[%clk 0:00:04]}  Ne6 {[%clk 0:00:12]} 30. Qxa8 {[%clk 0:00:04]}  Rxa8 {[%clk 0:00:11]} 31. Rc8+ {[%clk 0:00:05]}  Nd8 {[%clk 0:00:08]} 32. Rxa8 {[%clk 0:00:04]}  e6 {[%clk 0:00:09]} 33. Bg5 {[%clk 0:00:02]}  Bxg5 {[%clk 0:00:09]} 34. Nxg5 {[%clk 0:00:02]}  f6 {[%clk 0:00:10]} 35. Rxd8+ {[%clk 0:00:02]}  Kg7 {[%clk 0:00:10]} 36. Re8 {[%clk 0:00:02]}  c3 {[%clk 0:00:10]} 37. d8=Q {[%clk 0:00:03]}  c2 {[%clk 0:00:11]} 38. Qe7+ {[%clk 0:00:03]}  Kh6 {[%clk 0:00:11]} 39. Qxh7+ {[%clk 0:00:03]}  Kxg5 {[%clk 0:00:12]} 40. h4+ {[%clk 0:00:04]}  Kf5 {[%clk 0:00:12]} 41. g4+ {[%clk 0:00:04]}  Kf4 {[%clk 0:00:11]} 42. Rc8 {[%clk 0:00:04]}  e4 {[%clk 0:00:11]} 43. Qxg6 {[%clk 0:00:03]} 1-0


[Site "https://www.chess.com"]

[Event "Titled Tuesday Blitz March 15 Early 2022"]
[White "De Souza, Cristiano Gomes"]
[Black "Krishnan, Varun"]
[WhiteFideId "2151758"]
[BlackFideId "5054508"]
[WhiteElo "2068"]
[BlackElo "2586"]
[Result "1/2-1/2"]
[Round "01"]
[TimeControl "180+1"]
[Date "2022.03.15"]
[WhiteClock "0:00:04"]
[BlackClock "0:00:06"]

1. d4 {[%clk 0:03:00]}  d5 {[%clk 0:02:58]} 2. c4 {[%clk 0:03:00]}  e6 {[%clk 0:02:58]} 3. Nf3 {[%clk 0:03:00]}  Nf6 {[%clk 0:02:58]} 4. Nc3 {[%clk 0:03:01]}  Be7 {[%clk 0:02:58]} 5. Bg5 {[%clk 0:03:00]}  O-O {[%clk 0:02:58]} 6. e3 {[%clk 0:03:00]}  h6 {[%clk 0:02:58]} 7. Bh4 {[%clk 0:03:00]}  Ne4 {[%clk 0:02:58]} 8. Bxe7 {[%clk 0:02:59]}  Qxe7 {[%clk 0:02:58]} 9. cxd5 {[%clk 0:02:59]}  Nxc3 {[%clk 0:02:58]} 10. bxc3 {[%clk 0:03:00]}  exd5 {[%clk 0:02:58]} 11. h3 {[%clk 0:02:57]}  c5 {[%clk 0:02:47]} 12. Qb3 {[%clk 0:02:48]}  c4 {[%clk 0:02:46]} 13. Qb2 {[%clk 0:02:45]}  Nc6 {[%clk 0:02:46]} 14. Be2 {[%clk 0:02:44]}  Rb8 {[%clk 0:02:46]} 15. O-O {[%clk 0:02:38]}  b5 {[%clk 0:02:44]} 16. a3 {[%clk 0:02:36]}  a5 {[%clk 0:02:43]} 17. Nd2 {[%clk 0:02:27]}  b4 {[%clk 0:02:42]} 18. axb4 {[%clk 0:02:27]}  axb4 {[%clk 0:02:43]} 19. cxb4 {[%clk 0:02:26]}  Qxb4 {[%clk 0:02:29]} 20. Qxb4 {[%clk 0:02:23]}  Rxb4 {[%clk 0:02:30]} 21. Bf3 {[%clk 0:02:23]}  Be6 {[%clk 0:02:19]} 22. Rfc1 {[%clk 0:02:22]}  Rc8 {[%clk 0:01:55]} 23. Nb1 {[%clk 0:02:13]}  Rb2 {[%clk 0:01:31]} 24. Nc3 {[%clk 0:02:13]}  Nb4 {[%clk 0:01:25]} 25. Ra5 {[%clk 0:02:00]}  Nd3 {[%clk 0:01:17]} 26. Rf1 {[%clk 0:01:58]}  Nb4 {[%clk 0:00:43]} 27. Rc1 {[%clk 0:01:36]}  Rxf2 {[%clk 0:00:39]} 28. Kxf2 {[%clk 0:01:19]}  Nd3+ {[%clk 0:00:39]} 29. Kg3 {[%clk 0:01:11]}  Nxc1 {[%clk 0:00:40]} 30. Bxd5 {[%clk 0:01:06]}  Bxd5 {[%clk 0:00:34]} 31. Nxd5 {[%clk 0:01:06]}  Kh7 {[%clk 0:00:17]} 32. Rc5 {[%clk 0:01:02]}  Rd8 {[%clk 0:00:12]} 33. Nc3 {[%clk 0:00:56]}  Re8 {[%clk 0:00:12]} 34. Kf3 {[%clk 0:00:51]}  Nb3 {[%clk 0:00:10]} 35. Rc7 {[%clk 0:00:46]}  f5 {[%clk 0:00:08]} 36. Ke2 {[%clk 0:00:42]}  f4 {[%clk 0:00:08]} 37. e4 {[%clk 0:00:34]}  Nxd4+ {[%clk 0:00:07]} 38. Kd2 {[%clk 0:00:32]}  Rb8 {[%clk 0:00:06]} 39. Rxc4 {[%clk 0:00:29]}  Rb2+ {[%clk 0:00:05]} 40. Kd3 {[%clk 0:00:29]}  Ne6 {[%clk 0:00:05]} 41. Ne2 {[%clk 0:00:26]}  Rb3+ {[%clk 0:00:04]} 42. Rc3 {[%clk 0:00:25]}  Rb4 {[%clk 0:00:03]} 43. Rc4 {[%clk 0:00:22]}  Rb3+ {[%clk 0:00:03]} 44. Kd2 {[%clk 0:00:19]}  Rb6 {[%clk 0:00:04]} 45. Rc8 {[%clk 0:00:16]}  Kg6 {[%clk 0:00:04]} 46. Ke1 {[%clk 0:00:15]}  Rb1+ {[%clk 0:00:03]} 47. Kf2 {[%clk 0:00:15]}  Rb2 {[%clk 0:00:04]} 48. Kf3 {[%clk 0:00:15]}  Ng5+ {[%clk 0:00:04]} 49. Kf2 {[%clk 0:00:13]}  Nxe4+ {[%clk 0:00:05]} 50. Kf3 {[%clk 0:00:13]}  Nd2+ {[%clk 0:00:04]} 51. Kxf4 {[%clk 0:00:11]}  Rb4+ {[%clk 0:00:03]} 52. Ke3 {[%clk 0:00:10]}  Ne4 {[%clk 0:00:03]} 53. Nf4+ {[%clk 0:00:10]}  Kh7 {[%clk 0:00:03]} 54. Nd5 {[%clk 0:00:10]}  Ra4 {[%clk 0:00:02]} 55. Re8 {[%clk 0:00:09]}  Ng5 {[%clk 0:00:02]} 56. Nc3 {[%clk 0:00:06]}  Ra3 {[%clk 0:00:02]} 57. Kd3 {[%clk 0:00:06]}  Ra7 {[%clk 0:00:02]} 58. Rd8 {[%clk 0:00:06]}  Rd7+ {[%clk 0:00:03]} 59. Rxd7 {[%clk 0:00:06]}  Ne6 {[%clk 0:00:03]} 60. Nd5 {[%clk 0:00:06]}  Nc5+ {[%clk 0:00:03]} 61. Kd4 {[%clk 0:00:06]}  Nxd7 {[%clk 0:00:04]} 62. Nf4 {[%clk 0:00:06]}  Nf8 {[%clk 0:00:05]} 63. Ke5 {[%clk 0:00:05]}  g5 {[%clk 0:00:05]} 64. Ne6 {[%clk 0:00:05]}  Nxe6 {[%clk 0:00:04]} 65. Kxe6 {[%clk 0:00:05]}  Kg6 {[%clk 0:00:05]} 66. g4 {[%clk 0:00:05]}  h5 {[%clk 0:00:05]} 67. Ke5 {[%clk 0:00:05]}  hxg4 {[%clk 0:00:05]} 68. hxg4 {[%clk 0:00:04]}  Kg7 {[%clk 0:00:04]} 69. Kf5 {[%clk 0:00:04]}  Kf7 {[%clk 0:00:05]} 70. Kxg5 {[%clk 0:00:04]}  Kg7 {[%clk 0:00:05]} 71. Kf5 {[%clk 0:00:04]}  Kf7 {[%clk 0:00:05]} 72. g5 {[%clk 0:00:04]}  Kg7 {[%clk 0:00:06]} 73. g6 {[%clk 0:00:05]}  Kg8 {[%clk 0:00:06]} 74. Kf6 {[%clk 0:00:04]}  Kf8 {[%clk 0:00:06]} 75. Kf5 {[%clk 0:00:04]}  Kg7 {[%clk 0:00:06]} 76. Kg5 {[%clk 0:00:04]}  Kg8 {[%clk 0:00:06]} 77. Kf6 {[%clk 0:00:04]}  Kf8 {[%clk 0:00:06]} 78. g7+ {[%clk 0:00:03]}  Kg8 {[%clk 0:00:06]} 79. Kg6 {[%clk 0:00:04]} 1/2-1/2


[Site "https://www.chess.com"]

[Event "Titled Tuesday Blitz March 15 Early 2022"]
[White "Dixit, Nikhil"]
[Black "Bok, Benjamin"]
[WhiteFideId "5059534"]
[BlackFideId "1017063"]
[WhiteElo "2223"]
[BlackElo "2658"]
[Result "0-1"]
[Round "01"]
[TimeControl "180+1"]
[Date "2022.03.15"]
[WhiteClock "0:00:28"]
[BlackClock "0:00:22"]

1. e4 {[%clk 0:02:58]}  c5 {[%clk 0:03:00]} 2. Nf3 {[%clk 0:02:57]}  d6 {[%clk 0:03:00]} 3. Bb5+ {[%clk 0:02:57]}  Nd7 {[%clk 0:03:00]} 4. O-O {[%clk 0:02:54]}  a6 {[%clk 0:03:00]} 5. Bd3 {[%clk 0:02:53]}  Ngf6 {[%clk 0:03:00]} 6. Re1 {[%clk 0:02:48]}  e6 {[%clk 0:03:00]} 7. c3 {[%clk 0:02:40]}  Be7 {[%clk 0:03:00]} 8. Bc2 {[%clk 0:02:38]}  b5 {[%clk 0:03:01]} 9. d4 {[%clk 0:02:36]}  Bb7 {[%clk 0:03:02]} 10. Nbd2 {[%clk 0:02:27]}  Qc7 {[%clk 0:03:01]} 11. Nf1 {[%clk 0:02:24]}  O-O {[%clk 0:02:57]} 12. Ng3 {[%clk 0:02:23]}  Rfc8 {[%clk 0:02:43]} 13. Re2 {[%clk 0:02:18]}  a5 {[%clk 0:02:39]} 14. Bg5 {[%clk 0:01:59]}  h6 {[%clk 0:02:34]} 15. Bf4 {[%clk 0:01:51]}  b4 {[%clk 0:02:32]} 16. Rc1 {[%clk 0:01:48]}  Ba6 {[%clk 0:01:51]} 17. Re1 {[%clk 0:01:30]}  e5 {[%clk 0:01:07]} 18. Nf5 {[%clk 0:01:12]}  Bf8 {[%clk 0:01:06]} 19. dxe5 {[%clk 0:01:12]}  dxe5 {[%clk 0:01:07]} 20. Be3 {[%clk 0:01:13]}  Rd8 {[%clk 0:01:03]} 21. Ra1 {[%clk 0:01:05]}  Nb6 {[%clk 0:00:58]} 22. Qc1 {[%clk 0:01:00]}  bxc3 {[%clk 0:00:46]} 23. bxc3 {[%clk 0:01:00]}  Nc4 {[%clk 0:00:47]} 24. Nxh6+ {[%clk 0:00:47]}  gxh6 {[%clk 0:00:46]} 25. Bxh6 {[%clk 0:00:48]}  Nh7 {[%clk 0:00:38]} 26. Bxf8 {[%clk 0:00:37]}  Rxf8 {[%clk 0:00:30]} 27. Nh4 {[%clk 0:00:37]}  Nd6 {[%clk 0:00:26]} 28. Qh6 {[%clk 0:00:35]}  Qe7 {[%clk 0:00:24]} 29. Re3 {[%clk 0:00:33]}  Qf6 {[%clk 0:00:20]} 30. Rg3+ {[%clk 0:00:32]}  Kh8 {[%clk 0:00:20]} 31. Ng6+ {[%clk 0:00:29]}  fxg6 {[%clk 0:00:20]} 32. Rxg6 {[%clk 0:00:28]}  Qxf2+ {[%clk 0:00:20]} 33. Kh1 {[%clk 0:00:28]}  Qf1+ {[%clk 0:00:21]} 34. Rxf1 {[%clk 0:00:28]}  Rxf1# {[%clk 0:00:22]} 0-1


[Site "https://www.chess.com"]

[Event "Titled Tuesday Blitz March 15 Early 2022"]
[White "Donchenko, Alexander"]
[Black "Koridze, Lile"]
[WhiteFideId "24603295"]
[BlackFideId "13612514"]
[WhiteElo "2539"]
[BlackElo "1999"]
[Result "1-0"]
[Round "01"]
[TimeControl "180+1"]
[Date "2022.03.15"]
[WhiteClock "0:01:17"]
[BlackClock "0:00:57"]

1. d4 {[%clk 0:03:00]}  Nf6 {[%clk 0:02:59]} 2. Nf3 {[%clk 0:03:00]}  d5 {[%clk 0:02:59]} 3. c4 {[%clk 0:02:59]}  e6 {[%clk 0:02:59]} 4. g3 {[%clk 0:02:59]}  Bb4+ {[%clk 0:02:59]} 5. Bd2 {[%clk 0:02:59]}  Be7 {[%clk 0:02:59]} 6. Bg2 {[%clk 0:02:59]}  O-O {[%clk 0:03:00]} 7. O-O {[%clk 0:03:00]}  c6 {[%clk 0:03:00]} 8. Qc2 {[%clk 0:03:00]}  b6 {[%clk 0:03:00]} 9. Bf4 {[%clk 0:02:58]}  Bb7 {[%clk 0:02:59]} 10. Rd1 {[%clk 0:02:57]}  Nbd7 {[%clk 0:02:59]} 11. Ne5 {[%clk 0:02:56]}  Rc8 {[%clk 0:02:58]} 12. Nc3 {[%clk 0:02:49]}  Nxe5 {[%clk 0:02:51]} 13. dxe5 {[%clk 0:02:49]}  Nd7 {[%clk 0:02:51]} 14. cxd5 {[%clk 0:02:48]}  cxd5 {[%clk 0:02:51]} 15. e4 {[%clk 0:02:48]}  d4 {[%clk 0:02:43]} 16. Rxd4 {[%clk 0:02:47]}  Qc7 {[%clk 0:02:43]} 17. Rad1 {[%clk 0:02:44]}  Nxe5 {[%clk 0:02:39]} 18. Qa4 {[%clk 0:02:32]}  Bf6 {[%clk 0:02:29]} 19. Nb5 {[%clk 0:02:18]}  Qc5 {[%clk 0:02:27]} 20. Nd6 {[%clk 0:02:13]}  Rc7 {[%clk 0:02:23]} 21. Nxb7 {[%clk 0:02:07]}  Rxb7 {[%clk 0:02:23]} 22. R4d2 {[%clk 0:01:58]}  h6 {[%clk 0:02:19]} 23. Be3 {[%clk 0:01:55]}  Qe7 {[%clk 0:02:18]} 24. h3 {[%clk 0:01:50]}  Ng6 {[%clk 0:02:13]} 25. Rd7 {[%clk 0:01:41]}  Rxd7 {[%clk 0:02:08]} 26. Rxd7 {[%clk 0:01:42]}  Qe8 {[%clk 0:02:09]} 27. Rxa7 {[%clk 0:01:41]}  Qd8 {[%clk 0:02:07]} 28. Qd7 {[%clk 0:01:38]}  Qb8 {[%clk 0:02:05]} 29. Rb7 {[%clk 0:01:32]}  Qe5 {[%clk 0:02:04]} 30. Bxb6 {[%clk 0:01:31]}  Qxb2 {[%clk 0:02:00]} 31. f4 {[%clk 0:01:26]}  Qxa2 {[%clk 0:01:54]} 32. Bc5 {[%clk 0:01:25]}  Rd8 {[%clk 0:01:02]} 33. Qxf7+ {[%clk 0:01:24]}  Kh7 {[%clk 0:01:01]} 34. Qxf6 {[%clk 0:01:23]}  Rg8 {[%clk 0:00:57]} 35. Bd4 {[%clk 0:01:17]} 1-0


[Site "https://www.chess.com"]

[Event "Titled Tuesday Blitz March 15 Early 2022"]
[White "Dreev, Aleksey"]
[Black "Omariev, Maksim"]
[WhiteFideId "4100107"]
[BlackFideId "4193423"]
[WhiteElo "2625"]
[BlackElo "2460"]
[Result "1-0"]
[Round "01"]
[TimeControl "180+1"]
[Date "2022.03.15"]
[WhiteClock "0:00:36"]
[BlackClock "0:00:02"]

1. Nf3 {[%clk 0:02:47]}  d5 {[%clk 0:02:59]} 2. d4 {[%clk 0:02:46]}  c6 {[%clk 0:03:00]} 3. c4 {[%clk 0:02:47]}  Nf6 {[%clk 0:03:00]} 4. Qb3 {[%clk 0:02:47]}  g6 {[%clk 0:02:50]} 5. Nc3 {[%clk 0:02:44]}  Bg7 {[%clk 0:02:47]} 6. cxd5 {[%clk 0:02:43]}  cxd5 {[%clk 0:02:46]} 7. Bg5 {[%clk 0:02:43]}  e6 {[%clk 0:02:31]} 8. e3 {[%clk 0:02:42]}  O-O {[%clk 0:02:30]} 9. Bd3 {[%clk 0:02:40]}  Nc6 {[%clk 0:02:28]} 10. O-O {[%clk 0:02:39]}  h6 {[%clk 0:02:26]} 11. Bh4 {[%clk 0:02:38]}  Bd7 {[%clk 0:02:08]} 12. Ne5 {[%clk 0:02:25]}  g5 {[%clk 0:01:46]} 13. Bg3 {[%clk 0:02:23]}  Na5 {[%clk 0:01:44]} 14. Qa3 {[%clk 0:02:18]}  Rc8 {[%clk 0:01:38]} 15. Rac1 {[%clk 0:02:13]}  a6 {[%clk 0:01:29]} 16. Na4 {[%clk 0:01:48]}  Bxa4 {[%clk 0:00:54]} 17. Rxc8 {[%clk 0:01:47]}  Qxc8 {[%clk 0:00:52]} 18. Qxa4 {[%clk 0:01:46]}  Qd8 {[%clk 0:00:38]} 19. Rc1 {[%clk 0:01:36]}  Nh5 {[%clk 0:00:25]} 20. Nd7 {[%clk 0:01:33]}  b5 {[%clk 0:00:09]} 21. Qb4 {[%clk 0:01:29]}  Nxg3 {[%clk 0:00:08]} 22. Nxf8 {[%clk 0:01:05]}  Bxf8 {[%clk 0:00:08]} 23. Qc3 {[%clk 0:01:05]}  Ne4 {[%clk 0:00:06]} 24. Qc8 {[%clk 0:00:59]}  Qxc8 {[%clk 0:00:03]} 25. Rxc8 {[%clk 0:00:59]}  Nc4 {[%clk 0:00:04]} 26. b3 {[%clk 0:00:54]}  Ncd6 {[%clk 0:00:04]} 27. Ra8 {[%clk 0:00:52]}  a5 {[%clk 0:00:05]} 28. Rxa5 {[%clk 0:00:51]}  Nc3 {[%clk 0:00:05]} 29. a3 {[%clk 0:00:45]}  Kg7 {[%clk 0:00:05]} 30. Kf1 {[%clk 0:00:45]}  Nb7 {[%clk 0:00:04]} 31. Ra7 {[%clk 0:00:43]}  Nd8 {[%clk 0:00:03]} 32. b4 {[%clk 0:00:38]}  Na4 {[%clk 0:00:03]} 33. Bxb5 {[%clk 0:00:37]}  Nb2 {[%clk 0:00:04]} 34. Be8 {[%clk 0:00:36]}  Nc4 {[%clk 0:00:03]} 35. Rd7 {[%clk 0:00:36]}  Nb7 {[%clk 0:00:02]} 36. Rxf7+ {[%clk 0:00:36]}  Kg6 {[%clk 0:00:02]} 37. Rxb7+ {[%clk 0:00:37]}  Kf5 {[%clk 0:00:02]} 38. Rf7+ {[%clk 0:00:36]}  Ke4 {[%clk 0:00:02]} 39. Rxf8 {[%clk 0:00:36]} 1-0


[Site "https://www.chess.com"]

[Event "Titled Tuesday Blitz March 15 Early 2022"]
[White "Dushyant Sharma"]
[Black "Nenezic, Marko"]
[WhiteFideId "25065130"]
[BlackFideId "912123"]
[WhiteElo "2105"]
[BlackElo "2457"]
[Result "0-1"]
[Round "01"]
[TimeControl "180+1"]
[Date "2022.03.15"]
[WhiteClock "0:00:04"]
[BlackClock "0:00:16"]

1. e4 {[%clk 0:02:59]}  c5 {[%clk 0:02:59]} 2. Nf3 {[%clk 0:02:59]}  Nc6 {[%clk 0:02:59]} 3. d4 {[%clk 0:02:59]}  cxd4 {[%clk 0:02:59]} 4. Nxd4 {[%clk 0:03:00]}  Nf6 {[%clk 0:02:59]} 5. Nc3 {[%clk 0:03:00]}  d6 {[%clk 0:03:00]} 6. f4 {[%clk 0:03:00]}  e6 {[%clk 0:02:40]} 7. Nf3 {[%clk 0:02:59]}  Be7 {[%clk 0:02:38]} 8. Bd3 {[%clk 0:02:57]}  O-O {[%clk 0:02:34]} 9. O-O {[%clk 0:02:54]}  Nd7 {[%clk 0:02:35]} 10. Kh1 {[%clk 0:02:49]}  Nc5 {[%clk 0:02:35]} 11. Qe1 {[%clk 0:02:49]}  Nxd3 {[%clk 0:02:31]} 12. cxd3 {[%clk 0:02:50]}  b6 {[%clk 0:02:31]} 13. Be3 {[%clk 0:02:47]}  Ba6 {[%clk 0:02:31]} 14. Rd1 {[%clk 0:02:47]}  d5 {[%clk 0:02:23]} 15. exd5 {[%clk 0:02:28]}  exd5 {[%clk 0:02:23]} 16. Nd4 {[%clk 0:02:26]}  Nb4 {[%clk 0:02:04]} 17. Rf3 {[%clk 0:01:55]}  Nxd3 {[%clk 0:01:39]} 18. Qd2 {[%clk 0:01:53]}  Rc8 {[%clk 0:01:29]} 19. Rg3 {[%clk 0:01:44]}  Bf6 {[%clk 0:01:25]} 20. Bg1 {[%clk 0:01:29]}  Nc5 {[%clk 0:01:17]} 21. Nf5 {[%clk 0:01:20]}  Ne4 {[%clk 0:01:17]} 22. Nxe4 {[%clk 0:01:16]}  dxe4 {[%clk 0:01:18]} 23. Bd4 {[%clk 0:00:35]}  Bxd4 {[%clk 0:01:04]} 24. Qxd4 {[%clk 0:00:18]}  Qxd4 {[%clk 0:01:02]} 25. Nxd4 {[%clk 0:00:18]}  Rfd8 {[%clk 0:00:59]} 26. Rc3 {[%clk 0:00:19]}  Rc5 {[%clk 0:00:51]} 27. h3 {[%clk 0:00:15]}  h5 {[%clk 0:00:35]} 28. Kh2 {[%clk 0:00:15]}  Rcd5 {[%clk 0:00:33]} 29. Ra3 {[%clk 0:00:15]}  Bc8 {[%clk 0:00:26]} 30. Rc3 {[%clk 0:00:11]}  Bf5 {[%clk 0:00:17]} 31. Rc4 {[%clk 0:00:06]}  g6 {[%clk 0:00:17]} 32. a4 {[%clk 0:00:03]}  a5 {[%clk 0:00:14]} 33. Kg3 {[%clk 0:00:03]}  Bc8 {[%clk 0:00:14]} 34. Kf2 {[%clk 0:00:04]}  Ba6 {[%clk 0:00:15]} 35. Nc6 {[%clk 0:00:02]}  Rxd1 {[%clk 0:00:14]} 36. Nxd8 {[%clk 0:00:03]}  Rxd8 {[%clk 0:00:15]} 37. Rc6 {[%clk 0:00:03]}  Rd2+ {[%clk 0:00:16]} 38. Ke3 {[%clk 0:00:03]}  Rxb2 {[%clk 0:00:16]} 39. Rxb6 {[%clk 0:00:04]} 0-1


[Site "https://www.chess.com"]

[Event "Titled Tuesday Blitz March 15 Early 2022"]
[White "Fier, Alexandr"]
[Black "Koellner, Ruben Gideon"]
[WhiteFideId "2107139"]
[BlackFideId "12993093"]
[WhiteElo "2571"]
[BlackElo "2425"]
[Result "1-0"]
[Round "01"]
[TimeControl "180+1"]
[Date "2022.03.15"]
[WhiteClock "0:01:24"]
[BlackClock "0:00:02"]

1. d4 {[%clk 0:02:59]}  d6 {[%clk 0:02:55]} 2. Nf3 {[%clk 0:02:52]}  Nf6 {[%clk 0:02:54]} 3. g3 {[%clk 0:02:52]}  g6 {[%clk 0:02:52]} 4. b3 {[%clk 0:02:53]}  Bg7 {[%clk 0:02:52]} 5. Bb2 {[%clk 0:02:54]}  O-O {[%clk 0:02:51]} 6. Bg2 {[%clk 0:02:54]}  Nbd7 {[%clk 0:02:50]} 7. O-O {[%clk 0:02:54]}  Re8 {[%clk 0:02:49]} 8. c4 {[%clk 0:02:52]}  c6 {[%clk 0:02:49]} 9. Nc3 {[%clk 0:02:45]}  Qc7 {[%clk 0:02:46]} 10. e4 {[%clk 0:02:45]}  e5 {[%clk 0:02:44]} 11. Re1 {[%clk 0:02:46]}  a5 {[%clk 0:02:43]} 12. Qc2 {[%clk 0:02:41]}  h6 {[%clk 0:02:40]} 13. Rad1 {[%clk 0:02:41]}  Kh7 {[%clk 0:02:36]} 14. Na4 {[%clk 0:02:32]}  b6 {[%clk 0:02:27]} 15. d5 {[%clk 0:02:28]}  c5 {[%clk 0:02:26]} 16. Nc3 {[%clk 0:02:27]}  Nf8 {[%clk 0:02:24]} 17. Rf1 {[%clk 0:02:27]}  Bd7 {[%clk 0:02:22]} 18. Ne1 {[%clk 0:02:27]}  Ng8 {[%clk 0:02:12]} 19. Nd3 {[%clk 0:02:27]}  f5 {[%clk 0:02:05]} 20. f4 {[%clk 0:02:27]}  exf4 {[%clk 0:01:38]} 21. Nxf4 {[%clk 0:02:23]}  Nf6 {[%clk 0:01:30]} 22. Rde1 {[%clk 0:02:14]}  Ng4 {[%clk 0:01:21]} 23. exf5 {[%clk 0:02:06]}  Bxf5 {[%clk 0:01:22]} 24. Ne4 {[%clk 0:02:06]}  Ne5 {[%clk 0:01:01]} 25. h3 {[%clk 0:02:03]}  Rad8 {[%clk 0:00:45]} 26. g4 {[%clk 0:01:53]}  Bc8 {[%clk 0:00:44]} 27. g5 {[%clk 0:01:48]}  Bf5 {[%clk 0:00:37]} 28. gxh6 {[%clk 0:01:47]}  Bxh6 {[%clk 0:00:22]} 29. Qc3 {[%clk 0:01:44]}  Qg7 {[%clk 0:00:18]} 30. Ng3 {[%clk 0:01:40]}  Nfd7 {[%clk 0:00:15]} 31. Nxf5 {[%clk 0:01:39]}  gxf5 {[%clk 0:00:16]} 32. Ne6 {[%clk 0:01:40]}  Qg6 {[%clk 0:00:15]} 33. Qc2 {[%clk 0:01:37]}  Rg8 {[%clk 0:00:14]} 34. Nxd8 {[%clk 0:01:36]}  Rxd8 {[%clk 0:00:14]} 35. Qxf5 {[%clk 0:01:36]}  Qxf5 {[%clk 0:00:15]} 36. Rxf5 {[%clk 0:01:37]}  Rg8 {[%clk 0:00:14]} 37. Kh1 {[%clk 0:01:34]}  Rg3 {[%clk 0:00:14]} 38. Be4 {[%clk 0:01:28]}  Kh8 {[%clk 0:00:13]} 39. Kh2 {[%clk 0:01:27]}  Rg8 {[%clk 0:00:09]} 40. Rg1 {[%clk 0:01:27]}  Re8 {[%clk 0:00:07]} 41. Rg6 {[%clk 0:01:26]}  Kh7 {[%clk 0:00:06]} 42. Re6 {[%clk 0:01:26]}  Rg8 {[%clk 0:00:04]} 43. Rf7+ {[%clk 0:01:24]}  Kh8 {[%clk 0:00:02]} 44. Rxh6# {[%clk 0:01:24]} 1-0


[Site "https://www.chess.com"]